bitfinex-derivatives/quotes_SOLF0:USTF0_20250421
["timestamp","ask_amount","ask_price","bid_price","bid_amount"]
[1745197199009,560.72,141.2,141.15,8.70038668]
[1745197199205,30.38,141.21,141.15,8.70038668]
[1745197199509,30.38,141.21,141.18,7.0842]
[1745197199808,30.38,141.21,141.15,8.70038668]
[1745197200010,3.5113,141.24,141.15,8.70038668]
[1745197200208,30.38,141.23,141.15,8.70038668]
[1745197200406,37.4622,141.23,141.18,7.084]
[1745197200613,30.38,141.23,141.15,8.70038668]
[1745197200913,30.38,141.27,141.24,7.0809]
[1745197201112,30.38,141.27,141.2,8.70038668]
[1745197201312,37.4584,141.3,141.25,7.0808]
[1745197201612,8.70038668,141.27,141.18,30.38]
[1745197201908,33.7004,141.29,141.25,7.0805]
[1745197202103,33.7004,141.29,141.22,8.70038668]
[1745197202304,40.7795,141.29,141.24,7.0813]
[1745197202502,40.7795,141.29,141.21,8.70038668]
[1745197202700,33.7004,141.29,141.21,8.70038668]
[1745197203110,33.7004,141.29,141.24,0.0493187]
[1745197203111,3.3204,141.29,141.24,0.0493187]
[1745197204011,567.857,141.33,141.25,8.70038668]
[1745197204512,571.1774,141.33,141.25,8.70038668]
[1745197204810,3.4111,141.33,141.29,8.70038668]
[1745197205008,30.38,141.37,141.31,8.70038668]
[1745197205711,3.4572,141.39,141.27,33.7437]
[1745197205902,8.70038668,141.35,141.28,7.30748455]
[1745197206106,33.6454,141.34,141.25,8.70038668]
[1745197206305,30.38,141.33,141.32,0.0542319]
[1745197206810,30.38,141.33,141.25,8.70038668]
[1745197207011,30.38,141.33,141.27,8.70038668]
[1745197207206,30.38,141.33,141.31,0.04647192]
[1745197207412,3.2654,141.34,141.31,0.04647192]
[1745197207611,30.38,141.37,141.31,0.04647192]
[1745197207803,30.38,141.37,141.31,8.7468586]
[1745197208113,6.9234,141.39,141.31,0.04647192]
[1745197208311,15.62378668,141.39,141.31,0.04647192]
[1745197208710,6.9234,141.39,141.31,0.04647192]
[1745197208912,6.9234,141.39,141.32,8.70038668]
[1745197209305,6.9234,141.39,141.31,13.92244356]
[1745197209505,6.9234,141.39,141.37,7.0745]
[1745197210310,591.12,141.41,141.34,0.04887136]
[1745197210620,13.87597164,141.46,141.35,7.14061253]
[1745197210621,30.36,141.44,141.35,7.14061253]
[1745197210807,10.0538,141.45,141.42,7.0723]
[1745197211011,10.0538,141.45,141.37,13.87597164]
[1745197211213,10.0538,141.45,141.38,7.14061253]
[1745197211717,10.0538,141.45,141.4,0.04460796]
[1745197212016,37.1624,141.45,141.4,0.04460796]
[1745197212212,33.6962,141.45,141.4,0.04460796]
[1745197212413,0.04985489,141.44,141.4,0.04460796]
[1745197212914,0.04985489,141.44,141.43,7.0719]
[1745197213317,5.489e-05,141.44,141.43,7.0719]
[1745197214018,36.5861,141.5,141.4,13.9205796]
[1745197214218,36.5861,141.5,141.41,7.10582846]
[1745197214418,36.5861,141.5,141.41,10.43942846]
[1745197214815,36.5861,141.5,141.43,13.87597164]
[1745197215019,3.1269,141.5,141.42,30.34]
[1745197215517,3.1269,141.5,141.37,17.26527164]
[1745197215715,3.1269,141.5,141.38,7.09716164]
[1745197216116,3.1269,141.5,141.44,0.05289842]
[1745197216717,30.34,141.51,141.44,0.05289842]
[1745197217821,30.34,141.51,141.45,13.87597164]
[1745197218016,2.488e-05,141.49,141.45,13.87597164]
[1745197218218,2.488e-05,141.49,141.48,7.0694]
[1745197218421,3.1878,141.55,141.48,13.87597164]
[1745197219219,30.34,141.56,141.51,13.87597164]
[1745197219517,3.1574,141.58,141.51,13.87597164]
[1745197219920,30.34,141.61,141.54,13.87597164]
[1745197220622,30.34,141.65,141.57,13.87597164]
[1745197221222,6.222,141.66,141.57,13.87597164]
[1745197221420,30.32,141.65,141.58,7.0643]
[1745197221618,44.19597164,141.65,141.49,13.87597164]
[1745197221821,13.87597164,141.62,141.47,30.32]
[1745197222017,590.2,141.61,141.6,0.04642829]
[1745197222324,590.2,141.61,141.49,13.87597164]
[1745197222519,7.0639,141.59,141.53,7.0665]
[1745197222720,6.222,141.58,141.46,3.1919]
[1745197223015,6.222,141.58,141.51,7.0675]
[1745197223016,30.32,141.57,141.51,7.0675]
[1745197223220,30.32,141.57,141.46,3.1919]
[1745197223618,37.3849,141.57,141.53,0.04909725]
[1745197223825,30.32,141.57,141.53,0.04909725]
[1745197224029,30.32,141.57,141.46,3.1919]
[1745197224418,30.32,141.57,141.54,0.04786799]
[1745197224615,30.32,141.57,141.46,3.1919]
[1745197225221,7.0656,141.56,141.46,3.1919]
[1745197225423,7.0656,141.56,141.51,7.0678]
[1745197225623,30.32,141.57,141.46,3.1919]
[1745197226125,30.32,141.57,141.52,0.05077377]
[1745197226826,7.0665,141.54,141.49,7.0684]
[1745197227027,33.3698,141.53,141.44,44.19597164]
[1745197227221,33.3698,141.53,141.46,13.87597164]
[1745197227417,6.222,141.58,141.49,13.87597164]
[1745197227623,6.222,141.58,141.52,13.87597164]
[1745197227818,3.0687,141.58,141.52,13.87597164]
[1745197228022,3.0898,141.6,141.55,13.87597164]
[1745197228229,30.28,141.63,141.55,13.87597164]
[1745197228433,30.28,141.63,141.61,7.0628]
[1745197228630,30.28,141.63,141.54,0.04989816]
[1745197228829,30.28,141.63,141.56,13.87597164]
[1745197229026,30.28,141.63,141.52,44.15597164]
[1745197229229,30.28,141.63,141.52,13.87597164]
[1745197229430,30.28,141.63,141.49,47.39367164]
[1745197229632,30.28,141.63,141.56,0.04515413]
[1745197229834,3.3867,141.62,141.56,0.04515413]
[1745197230336,3.2914,141.61,141.56,0.04515413]
[1745197230530,30.28,141.63,141.56,0.04515413]
[1745197230732,20.55407164,141.67,141.56,0.04515413]
[1745197230931,30.28,141.66,141.56,0.04515413]
[1745197231133,7.0614,141.64,141.59,7.0634]
[1745197231333,30.28,141.66,141.55,13.87597164]
[1745197231734,37.3407,141.66,141.61,7.0625]
[1745197231935,3.3606,141.65,141.55,13.87597164]
[1745197232141,3.3606,141.65,141.59,0.0461572]
[1745197232341,3.3606,141.65,141.64,7.0614]
[1745197233242,3.3606,141.65,141.58,44.15597164]
[1745197233741,3.3606,141.65,141.64,7.0614]
[1745197234442,30.26,141.7,141.61,13.87597164]
[1745197234838,3.0919,141.69,141.58,44.15597164]
[1745197235344,3.0919,141.69,141.63,7.0614]
[1745197235540,3.0919,141.69,141.61,13.87597164]
[1745197236036,3.0919,141.69,141.64,7.061]
[1745197236744,3.0919,141.69,141.63,7.0618]
[1745197237338,3.0919,141.69,141.58,13.87597164]
[1745197237540,13.87597164,141.68,141.51,30.26]
[1745197237740,559.36,141.67,141.51,30.26]
[1745197237941,30.26,141.66,141.58,7.0642]
[1745197238239,13.87597164,141.65,141.51,30.26]
[1745197239840,13.87597164,141.65,141.54,7.0663]
[1745197240044,13.87597164,141.65,141.48,33.627]
[1745197240346,13.87597164,141.62,141.48,33.627]
[1745197240540,7.0647,141.58,141.53,7.0665]
[1745197240750,36.7351,141.57,141.48,33.627]
[1745197241045,36.7351,141.57,141.56,7.0654]
[1745197241242,36.7351,141.57,141.5,13.87597164]
[1745197241545,36.7351,141.57,141.55,7.0655]
[1745197241746,3.188,141.57,141.53,13.87597164]
[1745197241941,3.1444,141.61,141.53,13.87597164]
[1745197242145,3.1444,141.61,141.59,7.0634]
[1745197242346,3.1444,141.61,141.53,13.87597164]
[1745197242844,3.1444,141.61,141.6,7.0634]
[1745197243441,30.26,141.63,141.62,7.0624]
[1745197244242,30.26,141.63,141.56,44.13597164]
[1745197244951,30.26,141.63,141.56,30.26]
[1745197246145,9.7188,141.66,141.58,13.87597164]
[1745197246341,39.9788,141.66,141.58,13.87597164]
[1745197246747,39.9788,141.66,141.56,30.26]
[1745197247047,39.9788,141.66,141.53,13.87597164]
[1745197247247,7.0629,141.62,141.57,7.0645]
[1745197247448,30.26,141.61,141.53,13.87597164]
[1745197247651,30.26,141.61,141.5,44.13597164]
[1745197247851,3.2984,141.6,141.51,7.0670022]
[1745197248447,13.87597164,141.58,141.44,13.87597164]
[1745197248642,592.9598,141.57,141.41,13.87597164]
[1745197248953,13.87597164,141.55,141.42,7.22861031]
[1745197249146,13.87597164,141.55,141.41,13.87597164]
[1745197249346,592.9598,141.57,141.4,14.31738992]
[1745197249347,30.26,141.54,141.42,29.74256812]
[1745197249547,7.0672,141.53,141.48,7.069]
[1745197250052,7.0672,141.53,141.49,7.0688]
[1745197250253,30.26,141.54,141.45,22.5157178]
[1745197250452,30.26,141.54,141.48,22.5157178]
[1745197250653,30.26,141.54,141.53,7.0669]
[1745197250947,592.9598,141.57,141.48,22.5157178]
[1745197251151,592.9598,141.57,141.51,22.5157178]
[1745197251353,592.9598,141.57,141.45,22.5157178]
[1745197251354,30.26,141.61,141.54,22.5157178]
[1745197251554,30.26,141.63,141.57,7.0644]
[1745197251751,30.26,141.63,141.52,52.7757178]
[1745197252052,30.26,141.63,141.53,7.23462529]
[1745197252255,30.26,141.63,141.52,52.7757178]
[1745197252655,30.26,141.63,141.53,7.24636537]
[1745197252855,7.0632,141.61,141.56,7.0654]
[1745197253253,30.26,141.63,141.56,7.0654]
[1745197253452,30.26,141.63,141.49,22.5157178]
[1745197253755,29.1476178,141.62,141.45,612.2357178]
[1745197254052,29.1476178,141.62,141.46,10.17757535]
[1745197254249,6.6319,141.62,141.51,22.5157178]
[1745197254445,6.6319,141.62,141.57,22.5157178]
[1745197254446,3.3085,141.62,141.57,22.5157178]
[1745197254848,30.26,141.63,141.57,22.5157178]
[1745197255049,30.26,141.63,141.62,7.0624]
[1745197256656,30.26,141.63,141.61,7.0628]
[1745197257352,30.26,141.63,141.62,7.0624]
[1745197258556,559.46,141.65,141.6,22.5157178]
[1745197258751,30.24,141.66,141.6,22.5157178]
[1745197259351,30.24,141.66,141.64,7.0611]
[1745197259753,30.24,141.66,141.6,22.5157178]
[1745197260050,30.24,141.66,141.61,7.0627]
[1745197260250,6.5506,141.65,141.54,30.22]
[1745197260456,7.0617,141.64,141.6,7.0633]
[1745197260856,6.5506,141.65,141.54,30.22]
[1745197261052,7.0615,141.64,141.55,29.80186371]
[1745197261252,7.0615,141.64,141.56,7.28614591]
[1745197261447,16.6909,141.65,141.57,7.28918088]
[1745197261754,9.63,141.65,141.54,30.22]
[1745197261956,9.63,141.65,141.55,7.29101124]
[1745197262156,9.63,141.65,141.56,7.29321177]
[1745197262454,9.63,141.65,141.54,30.22]
[1745197262651,9.63,141.65,141.55,7.29537608]
[1745197262853,9.63,141.65,141.52,390.0583178]
[1745197263155,559.38,141.72,141.61,22.5157178]
[1745197263156,30.22,141.67,141.61,22.5157178]
[1745197263555,30.22,141.67,141.65,7.0606]
[1745197263860,30.22,141.67,141.61,22.5157178]
[1745197264258,37.28,141.67,141.63,7.0615]
[1745197264557,30.22,141.67,141.57,22.5157178]
[1745197264756,30.22,141.67,141.58,10.2068576]
[1745197264959,30.22,141.67,141.59,7.28403804]
[1745197265256,7.0611,141.65,141.61,7.0625]
[1745197265558,7.0605,141.66,141.57,22.5157178]
[1745197265858,7.0605,141.66,141.58,10.20717026]
[1745197266157,30.22,141.67,141.59,7.28427477]
[1745197266357,3.2034,141.65,141.54,22.5157178]
[1745197266549,10.4293,141.64,141.59,7.0636]
[1745197266753,30.22,141.63,141.54,22.5157178]
[1745197266953,30.22,141.63,141.55,10.21452744]
[1745197267158,30.22,141.66,141.6,22.5157178]
[1745197268158,30.22,141.66,141.64,7.061]
[1745197268859,30.22,141.66,141.62,7.0619]
[1745197269060,30.22,141.66,141.6,22.5157178]
[1745197269358,37.2807,141.66,141.61,7.0625]
[1745197269659,30.22,141.66,141.6,22.5157178]
[1745197270155,30.22,141.66,141.63,22.5157178]
[1745197270556,30.22,141.66,141.64,7.0614]
[1745197270957,30.22,141.66,141.6,22.5157178]
[1745197271158,30.22,141.66,141.61,7.28134832]
[1745197271358,30.22,141.66,141.62,22.8248719]
[1745197271655,30.22,141.69,141.63,7.27979686]
[1745197271857,30.22,141.69,141.65,15.54352358]
[1745197272062,3.1629,141.71,141.65,15.54352358]
[1745197272258,589.6,141.72,141.68,15.54352358]
[1745197273160,30.22,141.72,141.68,15.54352358]
[1745197273461,30.22,141.72,141.71,7.0579]
[1745197273961,30.22,141.72,141.7,7.0583]
[1745197274261,30.22,141.75,141.68,15.54352358]
[1745197275260,30.22,141.75,141.69,3.0219]
[1745197276459,30.22,141.75,141.74,7.0564]
[1745197277366,30.22,141.78,141.71,15.54352358]
[1745197277662,30.22,141.81,141.74,15.54352358]
[1745197277861,30.22,141.81,141.78,7.0543]
[1745197278661,30.22,141.84,141.77,45.76352358]
[1745197278856,30.22,141.84,141.8,15.54352358]
[1745197279059,30.22,141.87,141.85,7.0509]
[1745197279363,30.22,141.87,141.78,364.0676]
[1745197279962,30.22,141.87,141.79,7.0538]
[1745197280359,30.22,141.87,141.78,379.61112358]
[1745197281364,30.22,141.87,141.78,364.0676]
[1745197281564,7.0515,141.84,141.79,7.0535]
[1745197281963,30.22,141.87,141.78,379.61112358]
[1745197282658,7.053,141.81,141.76,7.0553]
[1745197283367,37.2525,141.82,141.77,7.0549]
[1745197283558,30.2,141.82,141.77,7.0549]
[1745197283862,7.0533,141.81,141.76,7.0553]
[1745197284067,30.2,141.82,141.76,7.0553]
[1745197284563,7.053,141.81,141.76,7.0553]
[1745197284773,30.2,141.82,141.78,7.0544]
[1745197285062,37.2525,141.82,141.78,7.0544]
[1745197285265,30.2,141.82,141.75,18.59342358]
[1745197285567,7.0532,141.81,141.75,18.59342358]
[1745197285868,30.2,141.82,141.77,7.0548]
[1745197286167,30.2,141.82,141.75,18.59342358]
[1745197286467,30.2,141.82,141.78,15.54352358]
[1745197286667,30.18,141.85,141.78,15.54352358]
[1745197286967,30.18,141.85,141.8,7.053]
[1745197287161,30.18,141.85,141.78,15.54352358]
[1745197287566,30.18,141.85,141.81,7.0525]
[1745197287969,37.231,141.85,141.81,7.0525]
[1745197288164,37.231,141.85,141.8,7.0533]
[1745197288463,30.18,141.85,141.78,15.54352358]
[1745197288763,6.2617,141.89,141.85,7.0509]
[1745197288964,36.4417,141.89,141.85,7.0509]
[1745197289174,36.4417,141.89,141.81,15.54352358]
[1745197289373,36.4417,141.89,141.83,7.0516]
[1745197289569,36.4417,141.89,141.81,15.54352358]
[1745197289968,36.4417,141.89,141.84,7.051]
[1745197290366,36.4417,141.89,141.81,15.54352358]
[1745197290571,36.4417,141.89,141.82,7.0521]
[1745197290771,36.4417,141.89,141.81,15.54352358]
[1745197290973,7.05,141.87,141.81,15.54352358]
[1745197291176,36.4417,141.89,141.81,15.54352358]
[1745197291872,7.0494,141.88,141.84,7.0511]
[1745197292075,36.4417,141.89,141.81,15.54352358]
[1745197292574,36.4417,141.89,141.74,15.54352358]
[1745197292778,15.54352358,141.87,141.74,15.54352358]
[1745197292971,15.54352358,141.87,141.78,7.0543]
[1745197293471,7.0523,141.83,141.74,15.54352358]
[1745197293775,30.16,141.83,141.74,15.54352358]
[1745197293972,30.16,141.83,141.76,7.0553]
[1745197294173,3.1505,141.82,141.72,364.2559]
[1745197294376,6.366,141.82,141.72,364.2559]
[1745197294573,7.0543,141.79,141.75,7.0556]
[1745197294777,30.16,141.78,141.75,7.0556]
[1745197294977,30.16,141.78,141.72,364.2559]
[1745197295174,33.3105,141.82,141.74,15.54352358]
[1745197295379,558.52,141.84,141.77,15.54352358]
[1745197295577,558.52,141.84,141.83,7.0519]
[1745197295774,30.16,141.85,141.8,15.54352358]
[1745197296378,30.16,141.88,141.8,15.54352358]
[1745197296577,30.16,141.88,141.8,18.55672358]
[1745197298179,7.0501,141.87,141.83,7.0516]
[1745197298575,30.16,141.88,141.8,18.55672358]
[1745197299274,30.16,141.88,141.85,7.0504]
[1745197299784,30.16,141.88,141.82,25.18653897]
[1745197299981,30.16,141.88,141.85,7.0507]
[1745197300181,30.16,141.88,141.82,25.18653897]
[1745197300478,30.16,141.88,141.86,7.0504]
[1745197301073,30.16,141.88,141.87,7.0499]
[1745197301275,558.58,141.91,141.85,25.18653897]
[1745197301483,30.16,141.92,141.85,25.18653897]
[1745197301683,30.16,141.92,141.83,30.16]
[1745197301981,30.16,141.92,141.82,386.18653897]
[1745197302183,7.0484,141.9,141.86,7.0503]
[1745197302384,30.16,141.92,141.82,386.18653897]
[1745197302878,7.0493,141.89,141.82,386.18653897]
[1745197303182,30.16,141.88,141.82,386.18653897]
[1745197303883,7.0505,141.86,141.82,7.0522]
[1745197304586,7.0514,141.85,141.81,7.0528]
[1745197304886,30.16,141.84,141.78,361.0]
[1745197305283,3.2204,141.86,141.78,391.16]
[1745197305684,3.2204,141.86,141.78,416.34653897]
[1745197306189,7.0517,141.84,141.8,7.0529]
[1745197306385,3.2204,141.86,141.77,25.18653897]
[1745197306584,3.2204,141.86,141.77,386.18653897]
[1745197306784,3.2204,141.86,141.8,25.18653897]
[1745197306985,3.2204,141.86,141.77,416.34653897]
[1745197307288,3.2204,141.86,141.8,25.18653897]
[1745197307892,3.2204,141.86,141.84,7.0511]
[1745197308086,3.2204,141.86,141.8,25.18653897]
[1745197308490,3.2204,141.86,141.83,7.0518]
[1745197308886,3.2204,141.86,141.8,25.18653897]
[1745197309588,3.2204,141.86,141.77,416.34653897]
[1745197310089,7.0518,141.84,141.8,7.0531]
[1745197310387,30.16,141.83,141.8,7.0531]
[1745197310584,7.0529,141.81,141.8,0.04753749]
[1745197310889,30.16,141.83,141.8,0.04753749]
[1745197312686,30.16,141.83,141.81,7.0529]
[1745197313083,3.2204,141.86,141.8,0.04753749]
[1745197313289,30.16,141.86,141.81,25.18653897]
[1745197313490,30.16,141.89,141.81,25.18653897]
[1745197313798,30.16,141.89,141.87,7.0496]
[1745197314486,30.16,141.89,141.86,7.0502]
[1745197315093,30.16,141.89,141.87,7.0499]
[1745197315789,30.16,141.89,141.82,6.3075]
[1745197315993,30.16,141.89,141.82,367.3075]
[1745197316696,30.16,141.89,141.82,364.1794]
[1745197317097,7.05,141.87,141.84,7.0514]
[1745197317298,3.3492,141.88,141.82,364.1794]
[1745197317497,3.3492,141.88,141.85,7.0508]
[1745197317893,3.3492,141.88,141.82,364.1794]
[1745197318092,10.3987,141.88,141.82,364.1794]
[1745197318293,3.3492,141.88,141.82,364.1794]
[1745197318695,3.3492,141.88,141.82,361.0]
[1745197318899,6.5089,141.88,141.82,361.0]
[1745197319101,7.0503,141.87,141.83,7.0518]
[1745197320498,30.12,141.86,141.83,7.0518]
[1745197320900,30.12,141.86,141.79,15.50756678]
[1745197321202,30.12,141.86,141.8,7.27541506]
[1745197321402,7.052,141.83,141.74,3.0533]
[1745197321702,30.12,141.82,141.76,15.50756678]
[1745197321901,30.12,141.82,141.77,10.19978049]
[1745197322199,30.12,141.82,141.78,10.19978049]
[1745197322400,30.12,141.82,141.79,10.20476179]
[1745197322601,30.12,141.82,141.8,7.2794125]
[1745197322900,30.12,141.82,141.76,15.50756678]
[1745197323102,30.12,141.82,141.79,15.50756678]
[1745197323298,30.12,141.82,141.8,10.22053611]
[1745197323605,30.12,141.82,141.73,379.61696678]
[1745197323798,30.12,141.82,141.74,10.22742515]
[1745197323999,30.12,141.82,141.75,10.22742515]
[1745197324301,30.12,141.82,141.76,10.22742515]
[1745197324600,30.12,141.82,141.77,10.22742515]
[1745197324900,30.12,141.82,141.79,7.0535]
[1745197325301,30.12,141.82,141.8,7.29354879]
[1745197325602,30.12,141.82,141.79,7.0535]
[1745197325800,30.12,141.82,141.73,379.61696678]
[1745197325995,30.12,141.82,141.8,0.04539107]
[1745197326404,30.12,141.82,141.73,379.61696678]
[1745197326703,30.12,141.82,141.8,0.044538]
[1745197326902,6.5566,141.81,141.73,379.61696678]
[1745197327209,6.5566,141.81,141.74,10.22425546]
[1745197327400,7.0537,141.8,141.76,7.055]
[1745197327706,7.0537,141.8,141.77,7.29550624]
[1745197327899,7.0535,141.8,141.77,7.0548]
[1745197328206,7.104246,141.8,141.77,7.0548]
[1745197328705,0.050746,141.8,141.77,7.0548]
[1745197330109,0.050746,141.8,141.78,7.0543]
[1745197331208,0.050746,141.8,141.73,379.61696678]
[1745197331406,0.050746,141.8,141.74,10.21631847]
[1745197331607,7.0544,141.78,141.75,7.29093839]
[1745197331812,30.14,141.78,141.7,18.56346678]
[1745197332005,30.14,141.78,141.71,10.22227547]
[1745197332200,30.14,141.78,141.72,7.29532735]
[1745197332406,30.14,141.78,141.67,3.3166]
[1745197332702,7.0562,141.75,141.68,10.21903021]
[1745197332907,7.0562,141.75,141.67,3.3166]
[1745197332908,30.14,141.74,141.71,7.0575]
[1745197333103,30.14,141.74,141.67,3.3166]
[1745197333304,30.14,141.74,141.71,7.0577]
[1745197333504,30.14,141.74,141.67,3.3166]
[1745197333705,0.05345196,141.72,141.68,10.2172393]
[1745197333909,0.05345196,141.72,141.7,7.058]
[1745197334409,0.05345196,141.72,141.67,3.3166]
[1745197334603,0.05345196,141.72,141.68,10.20908034]
[1745197334803,0.05345196,141.72,141.71,7.0579]
[1745197335200,3.1798,141.79,141.69,15.50756678]
[1745197335405,33.3198,141.79,141.72,15.50756678]
[1745197335609,33.3198,141.79,141.73,7.28456925]
[1745197335805,33.3198,141.79,141.72,15.50756678]
[1745197336003,33.3198,141.79,141.73,7.27839554]
[1745197336201,33.3198,141.79,141.7,0.04486751]
[1745197336412,33.3198,141.79,141.69,368.0587]
[1745197336611,33.3198,141.79,141.69,361.0]
[1745197336812,33.3198,141.79,141.67,3.3166]
[1745197337017,7.0564,141.74,141.73,0.04707892]
[1745197337211,30.14,141.74,141.67,3.3166]
[1745197337409,7.0589,141.69,141.65,7.0607]
[1745197337615,37.1989,141.69,141.66,7.27935163]
[1745197337815,30.14,141.69,141.63,361.0]
[1745197338012,30.14,141.69,141.59,9.508]
[1745197338216,30.14,141.69,141.6,7.28871649]
[1745197338413,7.06,141.67,141.62,7.0619]
[1745197338714,0.04928111,141.65,141.63,0.04650531]
[1745197338914,30.18928111,141.65,141.63,0.04650531]
[1745197339414,30.18928111,141.65,141.57,384.38798627]
[1745197339415,30.18928111,141.65,141.57,368.88041949]
[1745197339718,30.18928111,141.65,141.57,7.88041949]
[1745197339919,6.3409,141.64,141.57,7.88041949]
[1745197340617,7.063,141.61,141.57,14.94511949]
[1745197340818,30.16,141.6,141.57,7.88041949]
[1745197341118,30.16,141.59,141.57,2.84421949]
[1745197341317,30.16,141.58,141.55,27.23984671]
[1745197341510,30.16,141.58,141.55,14.99194671]
[1745197341711,30.16,141.58,141.42,406.66756678]
[1745197341712,37.22,141.58,141.42,406.66756678]
[1745197341914,15.50756678,141.57,141.46,3.0728]
[1745197342110,15.50756678,141.54,141.44,3.0945]
[1745197342309,30.20812191,141.53,141.44,3.0945]
[1745197342715,30.20812191,141.53,141.43,7.0717]
[1745197343018,30.16,141.53,141.4,6.1673]
[1745197343513,30.16,141.53,141.45,7.0709]
[1745197343514,0.04748442,141.49,141.45,7.0709]
[1745197343719,30.18,141.48,141.42,15.50756678]
[1745197343919,30.18,141.48,141.47,7.0698]
[1745197344219,30.18,141.5,141.42,376.50756678]
[1745197344717,0.05400757,141.49,141.42,361.0]
[1745197345112,0.05400757,141.49,141.44,7.0709]
[1745197345314,0.05400757,141.49,141.4,6.1673]
[1745197345519,7.12300757,141.49,141.43,7.0714]
[1745197345713,0.05400757,141.49,141.43,7.0714]
[1745197346017,7.07,141.47,141.41,7.0728]
[1745197346219,30.14,141.46,141.4,6.1673]
[1745197346423,30.16,141.45,141.4,6.1673]
[1745197347222,30.16,141.49,141.4,6.1673]
[1745197347419,559.4,141.58,141.45,15.50756678]
[1745197347722,30.16,141.6,141.48,15.50756678]
[1745197347918,30.16,141.6,141.49,3.108]
[1745197348115,30.16,141.6,141.56,7.0651]
[1745197348518,37.2237,141.6,141.51,15.50756678]
[1745197348724,30.16,141.6,141.49,364.108]
[1745197348917,0.04978482,141.59,141.49,364.108]
[1745197349117,0.04978482,141.59,141.51,15.50756678]
[1745197349425,30.16,141.6,141.51,15.50756678]
[1745197349721,30.16,141.6,141.49,364.108]
[1745197349923,0.05290021,141.56,141.51,15.50756678]
[1745197350321,0.05290021,141.56,141.55,7.0658]
[1745197350925,0.05290021,141.56,141.54,7.0663]
[1745197351114,0.05290021,141.56,141.51,15.50756678]
[1745197351422,30.16,141.6,141.54,0.05375122]
[1745197351827,30.16,141.6,141.54,15.561318]
[1745197352122,30.16,141.6,141.58,7.0641]
[1745197352322,30.16,141.6,141.54,15.561318]
[1745197352622,30.16,141.6,141.54,15.50756678]
[1745197353014,30.16,141.6,141.56,0.04992884]
[1745197353215,30.16,141.6,141.59,7.0639]
[1745197353418,30.16,141.63,141.59,7.0639]
[1745197353826,30.16,141.63,141.56,0.04992884]
[1745197354026,30.16,141.63,141.51,15.50756678]
[1745197354426,30.16,141.63,141.58,0.0541425]
[1745197354923,30.16,141.63,141.54,45.66756678]
[1745197355629,30.16,141.63,141.61,7.0628]
[1745197355930,30.16,141.63,141.57,0.05197598]
[1745197356429,30.16,141.63,141.54,406.66756678]
[1745197356628,30.16,141.63,141.55,6.2112]
[1745197356821,30.16,141.63,141.59,0.05318221]
[1745197357225,30.16,141.63,141.62,7.0624]
[1745197357432,559.4,141.65,141.6,1.9156]
[1745197358029,30.16,141.66,141.6,1.9156]
[1745197358631,30.16,141.66,141.62,7.0619]
[1745197358931,37.2207,141.66,141.6,1.9156]
[1745197359126,30.16,141.69,141.6,17.42316678]
[1745197359432,30.16,141.69,141.63,15.50756678]
[1745197359631,30.16,141.69,141.64,3.2487]
[1745197360630,30.16,141.69,141.65,0.05053192]
[1745197360832,30.16,141.69,141.67,7.0597]
[1745197361727,30.16,141.69,141.68,7.0594]
[1745197362333,30.16,141.69,141.67,7.0598]
[1745197362528,30.16,141.69,141.65,0.05053192]
[1745197363126,559.38,141.72,141.65,0.05053192]
[1745197363334,596.5775,141.72,141.67,7.0594]
[1745197363528,589.52,141.72,141.66,15.50756678]